fUSD/lending_fUSD_20240224
["ID","MTS","AMOUNT","RATE_DAILY","PERIOD"]
[315086474,1708809031932,-242.55,0.0002306,2]
[315086476,1708809031942,-156.23,0.000249,2]
[315086478,1708809031952,-494.72,0.00024942,2]
[315086480,1708809031961,-151.07,0.00024948,2]
[315086482,1708809031971,-360.00828828,0.0002495,2]
[315086484,1708809031988,-751.20171172,0.0002495,2]
[315086485,1708809031997,-360.0,0.00024986,2]
[315086486,1708809032006,-250.0,0.00024987,2]
[315086487,1708809032015,-1250.0,0.00025,3]
[315086488,1708809032025,-286.32348118,0.00025028,2]
[315086489,1708809032037,-307.14875415,0.00025028,2]
[315086490,1708809032097,-879.50776467,0.00025028,2]
[315086491,1708809032106,-250.0,0.00025125,2]
[315086492,1708809032115,-640.0,0.00025143,2]
[315086493,1708809032125,-557.75,0.00025162,2]
[315086494,1708809032135,-178.35,0.00025164,2]
[315086495,1708809032145,-200.0,0.00025181,2]
[315086496,1708809032154,-242.55,0.00025324,2]
[315086497,1708809032164,-481.46,0.00025324,2]
[315086498,1708809032174,-188.06,0.0002535,2]
[315086499,1708809032183,-209.22,0.00025381,2]
[315086500,1708809032192,-150.0,0.000255,2]
[315086501,1708809032202,-209.22,0.00025515,2]
[315086502,1708809032212,-154.36,0.0002557,10]
[315086503,1708809032223,-150.0,0.00025609,2]
[315086504,1708809032233,-300.0,0.00025609,2]
[315086505,1708809032242,-1067.45,0.0002561,2]
[315086506,1708809032253,-209.22,0.00025648,2]
[315086507,1708809032262,-165.67,0.00025767,2]
[315086509,1708809032271,-209.22,0.00025782,2]
[315086511,1708809032280,-299.99,0.00025815,12]
[315086513,1708809032289,-155.17,0.00025915,2]
[315086515,1708809032299,-209.22,0.00025916,2]
[315086517,1708809032307,-209.22,0.00026049,2]
[315086519,1708809032317,-154.36,0.00026181,10]
[315086520,1708809032326,-115.54508645,0.00026183,2]
[315086521,1708809032337,-93.67491355,0.00026183,2]
[315086522,1708809032346,-155.17,0.00026285,2]
[315086523,1708809032355,-209.22,0.00026316,2]
[315086524,1708809032364,-150.0,0.00026333,2]
[315086525,1708809032373,-150.0,0.00026333,2]
[315086526,1708809032382,-156.00765,0.00026333,2]
[315086527,1708809032391,-156.92606455,0.00026362,2]
[315086528,1708809032400,-463.5713719,0.000264,2]
[315086530,1708809038077,-200.0,0.00026298,2]
[315086531,1708809038087,-26.2291281,0.000264,2]
[315086532,1708809038096,-156.92606454,0.00026431,2]
[315086533,1708809038105,-3.33230736,0.0002645,2]
[315086534,1708809038134,-205.88769264,0.0002645,2]
[315086535,1708809038143,-4984.61230736,0.00026462,2]
[315086536,1708809038187,-495.54249855,0.00026462,2]
[315086798,1708809040596,-13916.86395142,0.00026462,2]
[315086800,1708809040608,-437.27508444,0.00026462,2]
[315086871,1708809041274,-30165.70615823,0.00026462,2]
[315086873,1708809041284,-3108.94430829,0.00026462,2]
[315086875,1708809041294,-20790.80583626,0.00026462,2]
[315086877,1708809041303,-50000.0,0.00026462,2]
[315086879,1708809041312,-5837.16568701,0.00026462,2]
[315086881,1708809041322,-1660.02277267,0.00026462,2]
[315086883,1708809041332,-331.35391575,0.000265,2]
[315086885,1708809041341,-5000.0,0.000265,2]
[315086887,1708809041351,-279.39100456,0.000265,2]
[315086889,1708809041361,-156.92606454,0.000265,2]
[315086891,1708809041370,-209.22,0.00026584,2]
[315086893,1708809041380,-1111.21,0.00026594,2]
[315086895,1708809041390,-3104.32559067,0.00026598,2]
[315086898,1708809041410,-557.2843266,0.00026598,2]
[315087066,1708809043031,-3557.07008273,0.00026598,2]
[315087068,1708809043041,-150.01,0.00026598,2]
[315087070,1708809043051,-880.48330299,0.00026599,5]
[315087072,1708809043060,-1006.3572,0.00026599,2]
[315087074,1708809043070,-1081.57237437,0.000266,2]
[315087076,1708809043079,-497231.02529171,0.000266,4]
[315087079,1708809043099,-1730.4067015,0.000266,4]
[315087082,1708809043110,-3246.87744809,0.000266,4]
[315087084,1708809043121,-2766.65856,0.000266,4]
[315087276,1708809046303,-746.35338229,0.00026598,2]
[315087371,1708809694481,983.8361,0.00022788,14]
[315087372,1708809846205,154.36,0.00024648,10]
[315087373,1708809910723,1872.51757508,0.000219,2]
[315087374,1708809975825,415.3476351,0.000219,2]
[315087375,1708809999757,415.3476351,0.000219,2]
[315087376,1708810015744,554.71911219,0.000219,2]
[315087387,1708810232121,-302.6809345,0.00022704,2]
[315087388,1708810232239,-36.8890655,0.00022704,2]
[315087389,1708810232249,-201.0,0.00023298,2]
[315087390,1708810232259,-1011.33,0.00024245,2]
[315087391,1708810232269,-150.0,0.0002425,2]
[315087392,1708810232279,-150.0,0.0002425,2]
[315087393,1708810232289,-183.0,0.0002425,2]
[315087394,1708810232298,-500.0,0.00024251,2]
[315087395,1708810232307,-841.01900579,0.00024251,2]
[315087396,1708810232319,-2093.37452871,0.00024251,2]
[315087397,1708810232331,-719.0247636,0.00024251,2]
[315087398,1708810232353,-3491.8817019,0.00024251,2]
[315087399,1708810232362,-2000.0,0.00024256,2]
[315087400,1708810232372,-500.0,0.00024259,2]
[315087401,1708810232381,-500.0,0.00024543,2]
[315087402,1708810232391,-596.53,0.00024585,2]
[315087403,1708810232400,-150.0,0.00024595,2]
[315087404,1708810232410,-177.26,0.00024598,2]
[315087405,1708810232419,-288.0,0.00024618,2]
[315087406,1708810232428,-1340.03,0.00024629,2]
[315087407,1708810232438,-250.0,0.00024658,2]
[315087408,1708810232447,-412.26,0.00024688,2]
[315087409,1708810232457,-2679.66,0.00024695,2]
[315087410,1708810232467,-499.99,0.00024695,2]
[315087411,1708810232476,-163.61,0.00024695,2]
[315087412,1708810232486,-4175.35,0.00024705,4]
[315087413,1708810232496,-156.12,0.00024709,2]
[315087414,1708810232505,-22183.2,0.0002471,2]
[315087415,1708810232515,-200.0,0.00024711,2]
[315087416,1708810232525,-200.0,0.00024716,2]
[315087417,1708810232534,-1000.0,0.00024719,2]
[315087419,1708810232544,-23060.22,0.0002472,2]
[315087420,1708810232553,-200.0,0.00024772,2]
[315087421,1708810232562,-250.0,0.00024785,2]
[315087422,1708810232571,-1197.57,0.00024888,2]
[315087423,1708810232580,-427.13,0.00024906,2]
[315087424,1708810232917,-1664.87,0.00024906,2]
[315087425,1708810232936,-155.02,0.00024911,2]
[315087426,1708810232946,-712.0,0.00024968,2]
[315087427,1708810232956,-339.57,0.00024968,2]
[315087428,1708810232965,-150.99,0.00024986,2]
[315087429,1708810232974,-155.02,0.00024987,2]
[315087430,1708810232983,-155.02,0.00025063,2]
[315087431,1708810232992,-1278.54,0.0002511,2]
[315087432,1708810233001,-155.02,0.0002514,2]
[315087433,1708810233011,-871.68,0.00025156,2]
[315087434,1708810233021,-702.4,0.00025195,2]
[315087435,1708810233029,-155.02,0.00025216,2]
[315087436,1708810233039,-1278.54,0.00025242,2]
[315087437,1708810233048,-1628.37,0.00025242,2]
[315087438,1708810233057,-155.02,0.00025293,2]
[315087439,1708810233066,-155.02,0.00025369,2]
[315087440,1708810233076,-1278.54,0.00025374,2]
[315087441,1708810233086,-155.02,0.00025445,2]
[315087442,1708810233095,-156.95733253,0.000255,2]
[315087443,1708810233104,-150.0,0.000255,2]
[315087444,1708810233113,-1278.54,0.00025506,2]
[315087445,1708810233122,-155.02,0.00025522,2]
[315087446,1708810233131,-156.95733253,0.00025571,2]
[315087447,1708810233139,-155.02,0.00025598,2]
[315087448,1708810233148,-151.87,0.00025636,2]
[315087449,1708810233157,-1278.54,0.00025638,2]
[315087450,1708810233167,-156.95733253,0.00025642,2]
[315087451,1708810233177,-1000.0,0.00025659,2]
[315087452,1708810233187,-155.02,0.00025674,2]
[315087453,1708810233198,-1447.44826066,0.000257,2]
[315087454,1708810233208,-156.95733253,0.00025713,2]
[315087455,1708810233218,-155.02,0.00025751,2]
[315087456,1708810233227,-1278.54,0.0002577,2]
[315087457,1708810233237,-170.24,0.00025774,2]
[315087458,1708810233247,-156.95733253,0.00025784,2]
[315087459,1708810233256,-1075.7901,0.000258,2]
[315087460,1708810233266,-897.23,0.0002581,2]
[315087461,1708810233278,-155.02,0.00025827,2]
[315087462,1708810233289,-156.95733253,0.00025856,2]
[315087463,1708810233298,-242.04478419,0.0002588,2]
[315087464,1708810233308,-177.78,0.0002588,2]
[315087465,1708810233318,-150.0,0.0002588,2]
[315087466,1708810233327,-1278.54,0.00025903,2]
[315087467,1708810233337,-155.02,0.00025903,2]
[315087468,1708810233347,-156.95733253,0.00025927,2]
[315087469,1708810233357,-155.02,0.0002598,2]
[315087470,1708810233366,-156.95733253,0.00025998,2]
[315087471,1708810233377,-1000.0,0.00025999,2]
[315087472,1708810233386,-1500.0,0.00026,2]
[315087473,1708810233396,-165.63,0.00026017,2]
[315087474,1708810233406,-1278.54,0.00026035,2]
[315087475,1708810233415,-155.02,0.00026056,2]
[315087476,1708810233425,-156.95733253,0.00026069,2]
[315087477,1708810233435,-150.0,0.00026079,2]
[315087478,1708810233445,-1447.44826065,0.000261,2]
[315087479,1708810233454,-155.02,0.00026132,2]
[315087480,1708810233464,-156.95733253,0.0002614,2]
[315087481,1708810233473,-427.13,0.00026151,2]
[315087482,1708810233482,-1278.54,0.00026167,2]
[315087483,1708810233492,-155.02,0.00026209,2]
[315087484,1708810233502,-156.95733253,0.00026211,2]
[315087485,1708810233511,-2958.5391,0.00026262,2]
[315087486,1708810233520,-156.95733253,0.00026282,2]
[315087487,1708810233530,-856.3156,0.00026287,2]
[315087488,1708810233539,-350.83789358,0.00026299,2]
[315087489,1708810233548,-1278.54,0.00026299,2]
[315087490,1708810233557,-2679.66,0.00026339,2]
[315087491,1708810233566,-156.95733253,0.00026353,2]
[315087492,1708810233576,-155.0,0.0002636,2]
[315087493,1708810233585,-4110.9535,0.00026362,2]
[315087494,1708810233595,-228.1199,0.00026362,2]
[315087495,1708810233604,-800.0,0.00026386,2]
[315087496,1708810233614,-200.0,0.00026387,2]
[315087497,1708810233622,-309.911323,0.00026387,2]
[315087498,1708810233631,-800.0,0.00026387,2]
[315087499,1708810233641,-800.0,0.00026387,2]
[315087500,1708810233650,-200.0,0.00026387,2]
[315087501,1708810233661,-500.0,0.00026387,2]
[315087502,1708810233670,-200.0,0.00026387,2]
[315087503,1708810233679,-3198.366,0.000264,2]
[315087504,1708810233689,-1161.0181,0.000264,2]
[315087505,1708810233698,-2210.0723,0.000264,2]
[315087506,1708810233707,-156.95733253,0.00026424,2]
[315087507,1708810233716,-355.29,0.00026428,2]
[315087508,1708810233725,-150.0,0.00026428,2]
[315087509,1708810233735,-1278.54,0.00026431,2]
[315087510,1708810233744,-318.27723128,0.00026461,2]
[315087511,1708810233754,-17878.143403,0.00026462,2]
[315087512,1708810234215,-32121.856597,0.00026462,2]
[315087513,1708810234225,-2604.83041543,0.00026462,2]
[315087514,1708810234237,-2071.34444398,0.00026462,2]
[315087515,1708810234249,-10959.17311469,0.00026462,2]
[315087516,1708810234258,-2599.59790337,0.00026462,2]
[315087517,1708810234268,-817.4866,0.00026494,2]
[315087518,1708810234486,-156.95733253,0.00026496,2]
[315087519,1708810234496,-151.022506,0.00026498,2]
[315087520,1708810234505,-151.022506,0.00026498,2]
[315087521,1708810234515,-151.022506,0.00026498,2]
[315087522,1708810234525,-151.022506,0.00026498,2]
[315087523,1708810234534,-151.022506,0.00026498,2]
[315087524,1708810234543,-151.022506,0.00026498,2]
[315087525,1708810234553,-151.022506,0.00026498,2]
[315087526,1708810234562,-151.022506,0.00026498,2]
[315087527,1708810234571,-151.022506,0.00026498,2]
[315087528,1708810234580,-151.022506,0.00026498,2]
[315087529,1708810234591,-151.022506,0.00026498,2]
[315087530,1708810234611,-151.022506,0.00026498,2]
[315087531,1708810234622,-151.022506,0.00026498,2]
[315087532,1708810234632,-151.022506,0.00026498,2]
[315087533,1708810234643,-151.022506,0.00026498,2]
[315087534,1708810234653,-382.8555,0.000265,2]
[315087535,1708810234663,-33654.4785,0.000265,2]
[315087536,1708810234673,-155.0,0.000265,2]
[315087537,1708810234683,-6447.9582,0.000265,2]
[315087538,1708810234693,-4710.0709,0.000265,2]
[315087539,1708810234704,-1000.0,0.000265,2]
[315087540,1708810234714,-159.21719908,0.000265,3]
[315087541,1708810234724,-153.78621203,0.000265,3]
[315087542,1708810234734,-5000.0,0.000265,2]
[315087543,1708810234744,-1541.43165225,0.000265,2]
[315087544,1708810234754,-223.51280364,0.000265,2]
[315087545,1708810234764,-845.54705048,0.000265,2]
[315087546,1708810234774,-1447.44826065,0.000265,2]
[315087547,1708810234783,-231.0,0.00026541,2]
[315087548,1708810234793,-612.0,0.00026541,2]
[315087549,1708810234803,-1278.54,0.00026563,2]
[315087550,1708810234814,-156.95733253,0.00026567,2]
[315087551,1708810234829,-175.54438993,0.0002659,2]
[315087552,1708810234841,-375.87864452,0.00026598,2]
[315087553,1708810234851,-794.51605435,0.00026598,2]
[315087554,1708810234861,-7628.05225274,0.00026598,2]
[315087555,1708810234871,-701.67578716,0.00026599,2]
[315087556,1708810234881,-158.95473824,0.00026599,2]
[315087557,1708810234891,-2445.97541956,0.00026599,2]
[315087558,1708810234901,-1008430.25542288,0.000266,4]
[315087559,1708810234910,-150.0,0.000266,2]
[315087560,1708810234920,-219.964703,0.000266,7]
[315087561,1708810234930,-151.0,0.000266,7]
[315087562,1708810234939,-151.0,0.000266,7]
[315087563,1708810234949,-151.0,0.000266,7]
[315087564,1708810234959,-151.0,0.000266,7]
[315087565,1708810234973,-151.0,0.000266,7]
[315087566,1708810234982,-151.0,0.000266,7]
[315087567,1708810234992,-151.0,0.000266,7]
[315087568,1708810235002,-151.0,0.000266,7]
[315087569,1708810235013,-151.0,0.000266,7]
[315087570,1708810235023,-151.0,0.000266,7]
[315087571,1708810235032,-151.0,0.000266,7]
[315087572,1708810235043,-151.0,0.000266,7]
[315087573,1708810235053,-151.0,0.000266,7]
[315087574,1708810235062,-151.0,0.000266,7]
[315087575,1708810235072,-151.0,0.000266,7]
[315087576,1708810235082,-151.0,0.000266,7]
[315087577,1708810235092,-151.0,0.000266,7]
[315087578,1708810235103,-151.0,0.000266,7]
[315087579,1708810235113,-151.0,0.000266,7]
[315087580,1708810235124,-151.0,0.000266,7]
[315087581,1708810235133,-151.0,0.000266,7]
[315087582,1708810235143,-151.0,0.000266,2]
[315087583,1708810235153,-151.0,0.000266,7]
[315087584,1708810235163,-231.527668,0.000266,7]
[315087585,1708810235173,-151.0,0.000266,7]
[315087586,1708810235183,-151.0,0.000266,7]
[315087587,1708810235195,-170.61264,0.000266,7]
[315087588,1708810235205,-151.0,0.000266,7]
[315087589,1708810235215,-156.95733253,0.00026638,2]
[315087590,1708810235227,-155.17,0.00026656,2]
[315087591,1708810235237,-1026.31096852,0.00026667,2]
[315087592,1708810235247,-1278.54,0.00026696,2]
[315087593,1708810235257,-156.95733253,0.00026709,2]
[315087594,1708810235268,-209.22,0.00026717,2]
[315087595,1708810235280,-223.51280363,0.00026768,2]
[315087596,1708810235290,-162.72309136,0.0002678,2]
[315087597,1708810235300,-156.95733253,0.0002678,2]
[315087598,1708810235415,-5845.45168764,0.0002678,2]
[315087599,1708810235425,-179.70418287,0.0002678,2]
[315087600,1708810235434,-557.00613332,0.0002678,2]
[315087601,1708810235444,-1067.72710182,0.0002678,2]
[315087602,1708810235453,-5041.87986465,0.00026798,2]
[315087603,1708810235463,-5041.87986465,0.00026798,2]
[315087604,1708810235473,-5041.87986465,0.00026798,2]
[315087605,1708810235482,-1541.43165216,0.00026798,2]
[315087606,1708810235492,-1278.54,0.00026828,2]
[315087607,1708810235503,-800.0,0.00026849,2]
[315087608,1708810235513,-209.22,0.00026851,2]
[315087609,1708810235523,-150.1,0.00026864,2]
[315087610,1708810235532,-150.0,0.00026864,2]
[315087611,1708810235541,-150.282,0.00026864,2]
[315087612,1708810235551,-249.818,0.00026864,2]
[315087613,1708810235560,-171.671,0.00026864,2]
[315087614,1708810235570,-537551.09355457,0.0002688,2]
[315087615,1708810235580,-151.0,0.0002688,7]
[315087616,1708810235590,-176.096742,0.0002688,7]
[315087617,1708810235600,-151.0,0.0002688,7]
[315087618,1708810235610,-275.495858,0.0002688,7]
[315087619,1708810235620,-151.0,0.0002688,7]
[315087620,1708810235630,-151.0,0.0002688,2]
[315087621,1708810235639,-1360.8357839,0.00026914,2]
[315087622,1708810235649,-1278.54,0.0002696,2]
[315087623,1708810235660,-153.78621196,0.00026969,3]
[315087624,1708810235669,-150.0,0.00026976,2]
[315087625,1708810235679,-242.15861588,0.00026976,2]
[315087626,1708810235689,-209.22,0.00026984,2]
[315087627,1708810235699,-387263.46915066,0.00027,7]
[315087628,1708810235709,-1300.0,0.00027,3]
[315087629,1708810235718,-213.827654,0.00027,7]
[315087630,1708810235728,-151.0,0.00027,7]
[315087631,1708810235737,-151.0,0.00027,2]
[315087632,1708810235747,-151.87,0.00027005,2]
[315087633,1708810235758,-155.17,0.00027026,2]
[315087634,1708810235767,-1269.252,0.00027035,2]
[315087635,1708810235776,-600.0,0.00027035,2]
[315087636,1708810235785,-216.0,0.00027035,2]
[315087637,1708810235796,-1953.0,0.00027035,2]
[315087638,1708810235806,-1257.0,0.00027035,2]
[315087639,1708810235815,-859.0,0.00027035,2]
[315087640,1708810235825,-276.0,0.00027035,2]
[315087641,1708810235834,-1007.0,0.00027035,2]
[315087642,1708810235846,-430.0,0.00027035,2]
[315087643,1708810235855,-338.0,0.00027035,2]
[315087644,1708810235865,-2890.0,0.00027035,2]
[315087645,1708810235875,-322.0,0.00027035,2]
[315087646,1708810235884,-1138.0,0.00027035,2]
[315087647,1708810235894,-302.0,0.00027035,2]
[315087648,1708810235903,-390.0,0.00027035,2]
[315087649,1708810235913,-455.0,0.00027035,2]
[315087650,1708810235922,-1040.0,0.00027035,2]
[315087651,1708810235931,-7437.0,0.00027035,2]
[315087652,1708810235941,-1373.0,0.00027035,2]
[315087653,1708810235950,-150.0,0.00027035,2]
[315087654,1708810235959,-8180.0,0.00027035,2]
[315087655,1708810235969,-2761.957,0.00027035,2]
[315087656,1708810235978,-2295.0,0.00027035,2]
[315087657,1708810235987,-19898.0,0.00027035,2]
[315087658,1708810235996,-4106.0,0.00027035,2]
[315087659,1708810236005,-1870.0,0.00027035,2]
[315087660,1708810236014,-17511.676,0.00027035,2]
[315087661,1708810236023,-2935.0,0.00027035,2]
[315087662,1708810236033,-223.51280363,0.00027036,2]
[315087663,1708810236042,-154.36,0.00027064,10]
[315087664,1708810236052,-1278.54,0.00027092,2]
[315087665,1708810236061,-1541.43165216,0.00027096,2]
[315087666,1708810236071,-209.22,0.00027118,2]
[315087667,1708810236081,-5041.87986465,0.00027128,2]
[315087668,1708810236092,-156.12,0.0002718,2]
[315087669,1708810236102,-1278.54,0.00027224,2]
[315087670,1708810236111,-339.57,0.00027232,2]
[315087671,1708810236120,-209.22,0.00027251,2]
[315087672,1708810236130,-156.41710631,0.0002728,3]
[315087673,1708810236139,-2812.2955,0.00027297,2]
[315087674,1708810236149,-42111.17209232,0.00027297,2]
[315087675,1708810236163,-13443.82790768,0.00027297,2]
[315087676,1708810236172,-359.38522653,0.00027297,13]
[315087677,1708810236183,-223.51280363,0.00027303,2]
[315087678,1708810236195,-159.21719904,0.0002732,3]
[315087679,1708810236204,-1278.54,0.00027356,2]
[315087680,1708810236214,-595.87,0.00027361,2]
[315087681,1708810236224,-209.22,0.00027385,2]
[315087682,1708810236235,-175.54438993,0.00027387,2]
[315087683,1708810236245,-1541.43165216,0.00027395,2]
[315087684,1708810236255,-155.17,0.00027396,2]
[315087685,1708810236266,-427.13,0.00027396,2]
[315087686,1708810236278,-500.0,0.00027397,2]
[315087687,1708810236288,-500.0,0.00027397,2]
[315087688,1708810236298,-500.0,0.00027397,2]
[315087689,1708810236308,-500.0,0.00027397,2]
[315087690,1708810236318,-2000.0,0.00027397,2]
[315087691,1708810236328,-2000.0,0.00027397,2]
[315087692,1708810236337,-2000.0,0.00027397,2]
[315087693,1708810236351,-2000.0,0.00027397,2]
[315087694,1708810236361,-2000.0,0.00027397,2]
[315087695,1708810236370,-894.07934197,0.00027397,2]
[315087696,1708810236380,-500.0,0.00027397,2]
[315087697,1708810236390,-500.0,0.00027397,2]
[315087698,1708810236400,-500.0,0.00027397,2]
[315087699,1708810236410,-500.0,0.00027397,2]
[315087700,1708810236420,-500.0,0.00027397,2]
[315087701,1708810236430,-500.0,0.00027397,2]
[315087702,1708810236440,-500.0,0.00027397,2]
[315087703,1708810236449,-500.0,0.00027397,2]
[315087704,1708810236459,-253.21288516,0.00027397,2]
[315087705,1708810236469,-500.0,0.00027397,2]
[315087706,1708810236479,-502.55470394,0.00027397,2]
[315087707,1708810236489,-503.07824912,0.00027397,2]
[315087708,1708810236498,-500.0,0.00027397,2]
[315087709,1708810236508,-226.34883199,0.00027397,2]
[315087710,1708810236517,-549.80432489,0.00027397,2]
[315087711,1708810236531,-500.0,0.00027397,2]
[315087712,1708810236540,-500.0,0.00027397,2]
[315087713,1708810236549,-500.0,0.00027397,2]
[315087714,1708810236558,-500.0,0.00027397,2]
[315087715,1708810236568,-366.79290899,0.00027397,2]
[315087716,1708810236579,-646.405095,0.00027397,2]
[315087717,1708810236588,-500.0,0.00027397,2]
[315087718,1708810236600,-441.87232269,0.00027397,2]
[315087719,1708810236610,-508.79026408,0.00027397,2]
[315087720,1708810236619,-505.12345395,0.00027397,2]
[315087721,1708810236629,-500.0,0.00027397,2]
[315087722,1708810236640,-500.0,0.00027397,2]
[315087723,1708810236650,-500.0,0.00027397,2]
[315087724,1708810236661,-515.72019042,0.00027397,2]
[315087725,1708810236670,-500.0,0.00027397,2]
[315087726,1708810236679,-500.0,0.00027397,2]
[315087727,1708810236688,-500.0,0.00027397,2]
[315087728,1708810236698,-500.0,0.00027397,2]
[315087729,1708810236708,-500.0,0.00027397,2]
[315087730,1708810236717,-500.0,0.00027397,2]
[315087731,1708810236726,-500.0,0.00027397,2]
[315087732,1708810236736,-500.0,0.00027397,2]
[315087733,1708810236745,-500.0,0.00027397,2]
[315087734,1708810236754,-500.0,0.00027397,2]
[315087735,1708810236763,-500.0,0.00027397,2]
[315087736,1708810236773,-500.0,0.00027397,2]
[315087737,1708810236783,-500.0,0.00027397,2]
[315087738,1708810236792,-500.0,0.00027397,2]
[315087739,1708810236805,-521.39249881,0.00027397,2]
[315087740,1708810236815,-500.0,0.00027397,2]
[315087741,1708810236824,-500.0,0.00027397,2]
[315087742,1708810236833,-500.0,0.00027397,2]
[315087743,1708810236844,-501.54725484,0.00027397,2]
[315087744,1708810236854,-500.0,0.00027397,2]
[315087745,1708810236863,-500.0,0.00027397,2]
[315087746,1708810236872,-500.0,0.00027397,2]
[315087747,1708810236882,-500.0,0.00027397,2]
[315087748,1708810236891,-500.0,0.00027397,2]
[315087749,1708810236900,-500.0,0.00027397,2]
[315087750,1708810236910,-500.0,0.00027397,2]
[315087751,1708810236920,-500.0,0.00027397,2]
[315087752,1708810236930,-504.36544174,0.00027397,2]
[315087753,1708810236939,-500.0,0.00027397,2]
[315087754,1708810236949,-500.0,0.00027397,2]
[315087755,1708810236958,-500.0,0.00027397,2]
[315087756,1708810236968,-500.0,0.00027397,2]
[315087757,1708810236977,-500.0,0.00027397,2]
[315087758,1708810236987,-500.0,0.00027397,2]
[315087759,1708810236997,-367.85185121,0.00027397,2]
[315087760,1708810237007,-500.0,0.00027397,2]
[315087761,1708810237016,-500.0,0.00027397,2]
[315087762,1708810237026,-500.0,0.00027397,2]
[315087763,1708810237036,-500.0,0.00027397,2]
[315087764,1708810237045,-500.0,0.00027397,2]
[315087765,1708810237054,-500.0,0.00027397,2]
[315087766,1708810237064,-500.0,0.00027397,2]
[315087767,1708810237073,-500.0,0.00027397,2]
[315087768,1708810237083,-316.38594337,0.00027397,2]
[315087769,1708810237093,-500.0,0.00027397,2]
[315087770,1708810237102,-500.0,0.00027397,2]
[315087771,1708810237111,-500.0,0.00027397,2]
[315087772,1708810237121,-500.0,0.00027397,2]
[315087773,1708810237130,-500.0,0.00027397,2]
[315087774,1708810237142,-164.31473652,0.00027397,2]
[315087775,1708810237153,-500.0,0.00027397,2]
[315087776,1708810237163,-500.0,0.00027397,2]
[315087777,1708810237175,-500.0,0.00027397,2]
[315087778,1708810237185,-500.0,0.00027397,2]
[315087779,1708810237201,-500.0,0.00027397,2]
[315087780,1708810237210,-500.0,0.00027397,2]
[315087781,1708810237221,-500.0,0.00027397,2]
[315087782,1708810237231,-500.0,0.00027397,2]
[315087783,1708810237241,-500.0,0.00027397,2]
[315087784,1708810237251,-500.0,0.00027397,2]
[315087785,1708810237260,-500.0,0.00027397,2]
[315087786,1708810237270,-500.0,0.00027397,2]
[315087787,1708810237281,-500.43227911,0.00027397,2]
[315087788,1708810237291,-586.38302399,0.00027397,2]
[315087789,1708810237301,-500.0,0.00027397,2]
[315087790,1708810237310,-545.83,0.00027397,2]
[315087791,1708810237319,-500.0,0.00027397,2]
[315087792,1708810237328,-500.0,0.00027397,2]
[315087793,1708810237337,-500.0,0.00027397,2]
[315087794,1708810237349,-500.0,0.00027397,2]
[315087795,1708810237359,-500.0,0.00027397,2]
[315087796,1708810237369,-415.66461507,0.00027397,2]
[315087797,1708810237378,-500.0,0.00027397,2]
[315087798,1708810237387,-500.0,0.00027397,2]
[315087799,1708810237397,-500.0,0.00027397,2]
[315087800,1708810237406,-500.0,0.00027397,2]
[315087801,1708810237416,-538.0035351,0.00027397,2]
[315087802,1708810237426,-500.0,0.00027397,2]
[315087803,1708810237435,-506.88666506,0.00027397,2]
[315087804,1708810237446,-500.0,0.00027397,2]